[Event "Titled Tuesday Blitz January 31 Early 2023"]
[White "Hakobyan, Aram"]
[Black "So, Wesley"]
[WhiteFideId "13306677"]
[BlackFideId "5202213"]
[WhiteElo "2608"]
[BlackElo "2760"]
[Result "1/2-1/2"]
[Round "06"]
[TimeControl "180+2"]
[Date "2023.01.31"]
[WhiteClock "0:00:15"]
[BlackClock "0:00:11"]

1. e4 {[%clk 0:02:51]}  c5 {[%clk 0:02:59]} 2. Nf3 {[%clk 0:02:50]}  d6 {[%clk 0:03:00]} 3. d4 {[%clk 0:02:48]}  cxd4 {[%clk 0:03:00]} 4. Nxd4 {[%clk 0:02:49]}  Nf6 {[%clk 0:03:01]} 5. Nc3 {[%clk 0:02:50]}  a6 {[%clk 0:03:01]} 6. Be3 {[%clk 0:02:50]}  Ng4 {[%clk 0:03:00]} 7. Bg5 {[%clk 0:02:50]}  h6 {[%clk 0:03:00]} 8. Bc1 {[%clk 0:02:51]}  Nf6 {[%clk 0:02:59]} 9. Bd3 {[%clk 0:02:51]}  e5 {[%clk 0:02:50]} 10. Nde2 {[%clk 0:02:50]}  Be6 {[%clk 0:02:50]} 11. O-O {[%clk 0:02:50]}  Nbd7 {[%clk 0:02:47]} 12. f4 {[%clk 0:02:40]}  Rc8 {[%clk 0:02:46]} 13. Be3 {[%clk 0:02:36]}  Be7 {[%clk 0:02:43]} 14. Kh1 {[%clk 0:02:36]}  b5 {[%clk 0:02:41]} 15. a4 {[%clk 0:02:32]}  b4 {[%clk 0:02:41]} 16. Nd5 {[%clk 0:02:33]}  Bxd5 {[%clk 0:02:36]} 17. exd5 {[%clk 0:02:32]}  Qa5 {[%clk 0:02:34]} 18. Ng3 {[%clk 0:02:20]}  g6 {[%clk 0:02:29]} 19. fxe5 {[%clk 0:02:15]}  Nxe5 {[%clk 0:02:27]} 20. Bd4 {[%clk 0:02:16]}  Nfd7 {[%clk 0:02:17]} 21. Qe2 {[%clk 0:02:14]}  Ra8 {[%clk 0:01:59]} 22. c4 {[%clk 0:02:01]}  O-O {[%clk 0:01:56]} 23. b3 {[%clk 0:01:57]}  Rae8 {[%clk 0:01:52]} 24. Bc2 {[%clk 0:01:38]}  Qd8 {[%clk 0:01:45]} 25. Qd2 {[%clk 0:01:13]}  a5 {[%clk 0:01:20]} 26. Qxh6 {[%clk 0:01:06]}  Bg5 {[%clk 0:01:07]} 27. Qh3 {[%clk 0:01:06]}  Nc5 {[%clk 0:01:05]} 28. Rae1 {[%clk 0:01:01]}  Bf6 {[%clk 0:00:56]} 29. Nh5 {[%clk 0:00:55]}  Bh8 {[%clk 0:00:54]} 30. Nf4 {[%clk 0:00:51]}  Qd7 {[%clk 0:00:51]} 31. Qg3 {[%clk 0:00:49]}  Qg4 {[%clk 0:00:50]} 32. Qxg4 {[%clk 0:00:41]}  Nxg4 {[%clk 0:00:51]} 33. Bxh8 {[%clk 0:00:41]}  Kxh8 {[%clk 0:00:45]} 34. Kg1 {[%clk 0:00:32]}  Ne3 {[%clk 0:00:43]} 35. Nxg6+ {[%clk 0:00:32]}  fxg6 {[%clk 0:00:35]} 36. Rxf8+ {[%clk 0:00:33]}  Rxf8 {[%clk 0:00:35]} 37. Rxe3 {[%clk 0:00:34]}  Kg7 {[%clk 0:00:36]} 38. h4 {[%clk 0:00:27]}  Rf4 {[%clk 0:00:33]} 39. g3 {[%clk 0:00:27]}  Rd4 {[%clk 0:00:33]} 40. Kf2 {[%clk 0:00:26]}  Kf6 {[%clk 0:00:24]} 41. Re2 {[%clk 0:00:27]}  Rg4 {[%clk 0:00:11]} 42. Kf3 {[%clk 0:00:25]}  Rd4 {[%clk 0:00:11]} 43. g4 {[%clk 0:00:20]}  g5 {[%clk 0:00:11]} 44. h5 {[%clk 0:00:20]}  Rf4+ {[%clk 0:00:11]} 45. Kg3 {[%clk 0:00:20]}  Rf1 {[%clk 0:00:10]} 46. Rf2+ {[%clk 0:00:20]}  Rxf2 {[%clk 0:00:10]} 47. Kxf2 {[%clk 0:00:20]}  Nd7 {[%clk 0:00:10]} 48. h6 {[%clk 0:00:19]}  Nc5 {[%clk 0:00:10]} 49. h7 {[%clk 0:00:19]}  Kg7 {[%clk 0:00:10]} 50. Ke3 {[%clk 0:00:19]}  Kh8 {[%clk 0:00:10]} 51. Kd4 {[%clk 0:00:16]}  Kg7 {[%clk 0:00:11]} 52. Ke3 {[%clk 0:00:16]}  Kh8 {[%clk 0:00:11]} 53. Bd1 {[%clk 0:00:16]}  Kg7 {[%clk 0:00:11]} 54. Bc2 {[%clk 0:00:15]} 1/2-1/2


[Site "https://www.chess.com"]

[Event "Titled Tuesday Blitz January 31 Early 2023"]
[White "Iliaguev, Nisim"]
[Black "Duda, Jan-Krzysztof"]
[WhiteFideId "2817276"]
[BlackFideId "1170546"]
[WhiteElo "2402"]
[BlackElo "2724"]
[Result "0-1"]
[Round "06"]
[TimeControl "180+2"]
[Date "2023.01.31"]
[WhiteClock "0:00:09"]
[BlackClock "0:00:12"]

1. e4 {[%clk 0:02:58]}  e6 {[%clk 0:02:58]} 2. d4 {[%clk 0:02:57]}  d5 {[%clk 0:02:59]} 3. Nc3 {[%clk 0:02:57]}  Bb4 {[%clk 0:02:57]} 4. e5 {[%clk 0:02:56]}  Qd7 {[%clk 0:02:57]} 5. Qg4 {[%clk 0:02:39]}  f5 {[%clk 0:02:52]} 6. Qg3 {[%clk 0:02:34]}  b6 {[%clk 0:02:50]} 7. a3 {[%clk 0:02:34]}  Bf8 {[%clk 0:02:44]} 8. h4 {[%clk 0:02:25]}  c5 {[%clk 0:02:43]} 9. Nf3 {[%clk 0:02:22]}  Nc6 {[%clk 0:02:38]} 10. Be3 {[%clk 0:02:14]}  a6 {[%clk 0:02:28]} 11. O-O-O {[%clk 0:02:08]}  Nh6 {[%clk 0:02:24]} 12. Kb1 {[%clk 0:02:02]}  Ng4 {[%clk 0:02:20]} 13. Be2 {[%clk 0:01:54]}  Nxe3 {[%clk 0:02:13]} 14. fxe3 {[%clk 0:01:53]}  c4 {[%clk 0:02:13]} 15. Ng5 {[%clk 0:01:50]}  b5 {[%clk 0:02:10]} 16. Bh5+ {[%clk 0:01:46]}  g6 {[%clk 0:02:10]} 17. Ne2 {[%clk 0:01:47]}  gxh5 {[%clk 0:02:09]} 18. Nf4 {[%clk 0:01:47]}  Qe7 {[%clk 0:01:55]} 19. Nxh5 {[%clk 0:01:41]}  Kd8 {[%clk 0:01:53]} 20. e4 {[%clk 0:01:38]}  fxe4 {[%clk 0:01:52]} 21. Rhf1 {[%clk 0:01:35]}  Rg8 {[%clk 0:01:47]} 22. Nf7+ {[%clk 0:01:30]}  Qxf7 {[%clk 0:01:44]} 23. Rxf7 {[%clk 0:01:30]}  Rxg3 {[%clk 0:01:45]} 24. Nxg3 {[%clk 0:01:25]}  Be7 {[%clk 0:01:33]} 25. Rxh7 {[%clk 0:01:24]}  Kd7 {[%clk 0:01:30]} 26. h5 {[%clk 0:01:22]}  Bb7 {[%clk 0:01:30]} 27. h6 {[%clk 0:01:20]}  a5 {[%clk 0:01:06]} 28. Nh5 {[%clk 0:01:16]}  b4 {[%clk 0:01:04]} 29. a4 {[%clk 0:01:05]}  c3 {[%clk 0:01:03]} 30. Nf6+ {[%clk 0:01:00]}  Kc7 {[%clk 0:01:03]} 31. Rg7 {[%clk 0:00:56]}  Rh8 {[%clk 0:00:57]} 32. h7 {[%clk 0:00:55]}  Kb6 {[%clk 0:00:57]} 33. Rh1 {[%clk 0:00:50]}  e3 {[%clk 0:00:51]} 34. Rg8 {[%clk 0:00:49]}  Rxh7 {[%clk 0:00:48]} 35. Nxh7 {[%clk 0:00:46]}  Nxd4 {[%clk 0:00:47]} 36. Nf6 {[%clk 0:00:44]}  Ba6 {[%clk 0:00:42]} 37. Re8 {[%clk 0:00:41]}  Bd3 {[%clk 0:00:09]} 38. cxd3 {[%clk 0:00:34]}  c2+ {[%clk 0:00:09]} 39. Kc1 {[%clk 0:00:30]}  b3 {[%clk 0:00:08]} 40. Re1 {[%clk 0:00:24]}  Bb4 {[%clk 0:00:07]} 41. Rxe3 {[%clk 0:00:19]}  Nf5 {[%clk 0:00:06]} 42. Rxe6+ {[%clk 0:00:18]}  Kc5 {[%clk 0:00:06]} 43. Re2 {[%clk 0:00:17]}  Kd4 {[%clk 0:00:07]} 44. Rxc2 {[%clk 0:00:14]}  bxc2 {[%clk 0:00:05]} 45. Kxc2 {[%clk 0:00:15]}  Ne3+ {[%clk 0:00:06]} 46. Kb1 {[%clk 0:00:15]}  Nxg2 {[%clk 0:00:06]} 47. Re8 {[%clk 0:00:15]}  Nf4 {[%clk 0:00:06]} 48. e6 {[%clk 0:00:15]}  Ke5 {[%clk 0:00:06]} 49. Nd7+ {[%clk 0:00:15]}  Kd6 {[%clk 0:00:06]} 50. Nf8 {[%clk 0:00:15]}  Nxd3 {[%clk 0:00:05]} 51. e7 {[%clk 0:00:14]}  Nf4 {[%clk 0:00:03]} 52. Kc2 {[%clk 0:00:11]}  Ke5 {[%clk 0:00:02]} 53. Rc8 {[%clk 0:00:09]}  Bxe7 {[%clk 0:00:02]} 54. Nd7+ {[%clk 0:00:09]}  Kd4 {[%clk 0:00:02]} 55. Nb6 {[%clk 0:00:08]}  Bb4 {[%clk 0:00:02]} 56. Rd8 {[%clk 0:00:07]}  Ke4 {[%clk 0:00:03]} 57. Nd7 {[%clk 0:00:06]}  d4 {[%clk 0:00:03]} 58. Re8+ {[%clk 0:00:06]}  Kf5 {[%clk 0:00:02]} 59. Rf8+ {[%clk 0:00:06]}  Ke4 {[%clk 0:00:02]} 60. Re8+ {[%clk 0:00:06]}  Kf5 {[%clk 0:00:02]} 61. Ne5 {[%clk 0:00:07]}  Bd6 {[%clk 0:00:01]} 62. Nd3 {[%clk 0:00:07]}  Nd5 {[%clk 0:00:02]} 63. Rd8 {[%clk 0:00:05]}  Ne3+ {[%clk 0:00:02]} 64. Kd2 {[%clk 0:00:05]}  Ke6 {[%clk 0:00:03]} 65. Ra8 {[%clk 0:00:04]}  Kd7 {[%clk 0:00:03]} 66. Rxa5 {[%clk 0:00:04]}  Nc4+ {[%clk 0:00:03]} 67. Kc2 {[%clk 0:00:04]}  Nxa5 {[%clk 0:00:04]} 68. b4 {[%clk 0:00:04]}  Nc4 {[%clk 0:00:03]} 69. Kb3 {[%clk 0:00:05]}  Nd2+ {[%clk 0:00:04]} 70. Kc2 {[%clk 0:00:06]}  Nc4 {[%clk 0:00:03]} 71. Kb3 {[%clk 0:00:06]}  Ne3 {[%clk 0:00:04]} 72. a5 {[%clk 0:00:06]}  Kc6 {[%clk 0:00:04]} 73. Ka4 {[%clk 0:00:06]}  Nd5 {[%clk 0:00:04]} 74. b5+ {[%clk 0:00:06]}  Kb7 {[%clk 0:00:04]} 75. Kb3 {[%clk 0:00:06]}  Ne3 {[%clk 0:00:05]} 76. Ka4 {[%clk 0:00:03]}  Be7 {[%clk 0:00:05]} 77. Kb3 {[%clk 0:00:03]}  Bf8 {[%clk 0:00:05]} 78. Ka4 {[%clk 0:00:03]}  Kc7 {[%clk 0:00:05]} 79. Kb3 {[%clk 0:00:04]}  Be7 {[%clk 0:00:05]} 80. Ka4 {[%clk 0:00:04]}  Bf6 {[%clk 0:00:05]} 81. Kb3 {[%clk 0:00:05]}  Bh4 {[%clk 0:00:06]} 82. Ka4 {[%clk 0:00:05]}  Be7 {[%clk 0:00:06]} 83. Kb3 {[%clk 0:00:05]}  Bd8 {[%clk 0:00:07]} 84. Ka4 {[%clk 0:00:06]}  Kd6 {[%clk 0:00:07]} 85. Kb4 {[%clk 0:00:05]}  Kd5 {[%clk 0:00:07]} 86. b6 {[%clk 0:00:04]}  Kc6 {[%clk 0:00:07]} 87. b7 {[%clk 0:00:05]}  Be7+ {[%clk 0:00:07]} 88. Ka4 {[%clk 0:00:04]}  Kxb7 {[%clk 0:00:08]} 89. Kb5 {[%clk 0:00:04]}  Ka7 {[%clk 0:00:08]} 90. Kc6 {[%clk 0:00:04]}  Bf6 {[%clk 0:00:07]} 91. Kd7 {[%clk 0:00:05]}  Nc4 {[%clk 0:00:07]} 92. Ke6 {[%clk 0:00:05]}  Bg7 {[%clk 0:00:07]} 93. Kd5 {[%clk 0:00:05]}  Ne3+ {[%clk 0:00:07]} 94. Ke4 {[%clk 0:00:04]}  Ka6 {[%clk 0:00:07]} 95. Kf3 {[%clk 0:00:03]}  Kxa5 {[%clk 0:00:08]} 96. Ke4 {[%clk 0:00:04]}  Kb5 {[%clk 0:00:08]} 97. Nf4 {[%clk 0:00:05]}  Kc4 {[%clk 0:00:08]} 98. Ne6 {[%clk 0:00:06]}  Bf6 {[%clk 0:00:08]} 99. Nxd4 {[%clk 0:00:06]}  Bxd4 {[%clk 0:00:09]} 100. Kf3 {[%clk 0:00:07]}  Kd3 {[%clk 0:00:09]} 101. Kg3 {[%clk 0:00:05]}  Ke4 {[%clk 0:00:09]} 102. Kh3 {[%clk 0:00:06]}  Kf3 {[%clk 0:00:09]} 103. Kh4 {[%clk 0:00:06]}  Ng2+ {[%clk 0:00:09]} 104. Kh5 {[%clk 0:00:07]}  Nf4+ {[%clk 0:00:09]} 105. Kh6 {[%clk 0:00:08]}  Kg4 {[%clk 0:00:08]} 106. Kh7 {[%clk 0:00:09]}  Kf5 {[%clk 0:00:09]} 107. Kg8 {[%clk 0:00:09]}  Ke6 {[%clk 0:00:09]} 108. Kf8 {[%clk 0:00:10]}  Bf6 {[%clk 0:00:09]} 109. Ke8 {[%clk 0:00:11]}  Nd5 {[%clk 0:00:09]} 110. Kf8 {[%clk 0:00:10]}  Be7+ {[%clk 0:00:09]} 111. Kg8 {[%clk 0:00:11]}  Kf6 {[%clk 0:00:09]} 112. Kh7 {[%clk 0:00:12]}  Ne3 {[%clk 0:00:09]} 113. Kg8 {[%clk 0:00:13]}  Ng4 {[%clk 0:00:09]} 114. Kh7 {[%clk 0:00:14]}  Bd8 {[%clk 0:00:09]} 115. Kg8 {[%clk 0:00:14]}  Bc7 {[%clk 0:00:09]} 116. Kf8 {[%clk 0:00:15]}  Ke6 {[%clk 0:00:09]} 117. Ke8 {[%clk 0:00:16]}  Nf6+ {[%clk 0:00:09]} 118. Kf8 {[%clk 0:00:17]}  Bd6+ {[%clk 0:00:10]} 119. Kg7 {[%clk 0:00:16]}  Kf5 {[%clk 0:00:10]} 120. Kf7 {[%clk 0:00:16]}  Bc5 {[%clk 0:00:10]} 121. Kg7 {[%clk 0:00:16]}  Ne4 {[%clk 0:00:10]} 122. Kf7 {[%clk 0:00:16]}  Nf6 {[%clk 0:00:07]} 123. Kg7 {[%clk 0:00:16]}  Ke6 {[%clk 0:00:07]} 124. Kg6 {[%clk 0:00:17]}  Be3 {[%clk 0:00:06]} 125. Kg7 {[%clk 0:00:17]}  Nd5 {[%clk 0:00:07]} 126. Kg6 {[%clk 0:00:18]}  Nf4+ {[%clk 0:00:07]} 127. Kg5 {[%clk 0:00:18]}  Nd3+ {[%clk 0:00:07]} 128. Kg4 {[%clk 0:00:17]}  Ne5+ {[%clk 0:00:07]} 129. Kg3 {[%clk 0:00:17]}  Kf5 {[%clk 0:00:08]} 130. Kg2 {[%clk 0:00:17]}  Kf4 {[%clk 0:00:09]} 131. Kf1 {[%clk 0:00:16]}  Kf3 {[%clk 0:00:09]} 132. Ke1 {[%clk 0:00:16]}  Nd3+ {[%clk 0:00:09]} 133. Kd1 {[%clk 0:00:16]}  Bf4 {[%clk 0:00:08]} 134. Kc2 {[%clk 0:00:16]}  Ke4 {[%clk 0:00:09]} 135. Kb3 {[%clk 0:00:16]}  Ke3 {[%clk 0:00:10]} 136. Kc4 {[%clk 0:00:17]}  Be5 {[%clk 0:00:07]} 137. Kd5 {[%clk 0:00:18]}  Bb2 {[%clk 0:00:07]} 138. Ke6 {[%clk 0:00:18]}  Ke4 {[%clk 0:00:08]} 139. Kd6 {[%clk 0:00:18]}  Ne5 {[%clk 0:00:08]} 140. Ke7 {[%clk 0:00:17]}  Kd5 {[%clk 0:00:09]} 141. Kf8 {[%clk 0:00:17]}  Ke6 {[%clk 0:00:09]} 142. Kg7 {[%clk 0:00:14]}  Bc1 {[%clk 0:00:09]} 143. Kf8 {[%clk 0:00:11]}  Kd7 {[%clk 0:00:09]} 144. Kg7 {[%clk 0:00:11]}  Ke7 {[%clk 0:00:10]} 145. Kh7 {[%clk 0:00:10]}  Kf7 {[%clk 0:00:10]} 146. Kh8 {[%clk 0:00:09]}  Ng6+ {[%clk 0:00:10]} 147. Kh7 {[%clk 0:00:10]}  Nf8+ {[%clk 0:00:11]} 148. Kh8 {[%clk 0:00:09]}  Bb2# {[%clk 0:00:12]} 0-1


[Site "https://www.chess.com"]

[Event "Titled Tuesday Blitz January 31 Early 2023"]
[White "Sarana, Alexey"]
[Black "Yeletsky, Ivan"]
[WhiteFideId "24133795"]
[BlackFideId "24180327"]
[WhiteElo "2685"]
[BlackElo "2494"]
[Result "1-0"]
[Round "06"]
[TimeControl "180+2"]
[Date "2023.01.31"]
[WhiteClock "0:01:53"]
[BlackClock "0:00:52"]

1. c4 {[%clk 0:03:00]}  e6 {[%clk 0:02:59]} 2. Nc3 {[%clk 0:03:00]}  d5 {[%clk 0:03:00]} 3. cxd5 {[%clk 0:02:59]}  exd5 {[%clk 0:03:00]} 4. d4 {[%clk 0:03:00]}  c6 {[%clk 0:03:00]} 5. Bf4 {[%clk 0:03:00]}  Bf5 {[%clk 0:02:59]} 6. e3 {[%clk 0:03:00]}  Bd6 {[%clk 0:02:59]} 7. Bxd6 {[%clk 0:02:57]}  Qxd6 {[%clk 0:02:59]} 8. Nge2 {[%clk 0:02:57]}  Nd7 {[%clk 0:02:51]} 9. Ng3 {[%clk 0:02:57]}  Bg6 {[%clk 0:02:51]} 10. h4 {[%clk 0:02:57]}  h6 {[%clk 0:02:51]} 11. h5 {[%clk 0:02:58]}  Bh7 {[%clk 0:02:52]} 12. Bd3 {[%clk 0:02:58]}  Bxd3 {[%clk 0:02:52]} 13. Qxd3 {[%clk 0:02:59]}  Ne7 {[%clk 0:02:52]} 14. O-O {[%clk 0:02:52]}  O-O {[%clk 0:02:52]} 15. Nce2 {[%clk 0:02:48]}  Nf6 {[%clk 0:02:49]} 16. Nf4 {[%clk 0:02:48]}  Rfe8 {[%clk 0:02:31]} 17. a3 {[%clk 0:02:40]}  a5 {[%clk 0:02:31]} 18. Rad1 {[%clk 0:02:39]}  a4 {[%clk 0:02:31]} 19. Rfe1 {[%clk 0:02:37]}  b6 {[%clk 0:02:20]} 20. Re2 {[%clk 0:02:34]}  Qc7 {[%clk 0:02:07]} 21. Rc2 {[%clk 0:02:32]}  c5 {[%clk 0:01:57]} 22. dxc5 {[%clk 0:02:24]}  bxc5 {[%clk 0:01:57]} 23. Nf5 {[%clk 0:02:24]}  Rad8 {[%clk 0:01:50]} 24. Nxe7+ {[%clk 0:02:23]}  Qxe7 {[%clk 0:01:42]} 25. Qb5 {[%clk 0:02:22]}  d4 {[%clk 0:01:43]} 26. exd4 {[%clk 0:02:16]}  Rxd4 {[%clk 0:01:43]} 27. Rxd4 {[%clk 0:02:10]}  cxd4 {[%clk 0:01:44]} 28. Re2 {[%clk 0:02:10]}  Qd8 {[%clk 0:01:30]} 29. Rxe8+ {[%clk 0:02:10]}  Qxe8 {[%clk 0:01:18]} 30. Qxe8+ {[%clk 0:02:10]}  Nxe8 {[%clk 0:01:19]} 31. Kf1 {[%clk 0:02:10]}  Nd6 {[%clk 0:01:18]} 32. Ke2 {[%clk 0:02:11]}  Nc4 {[%clk 0:01:04]} 33. Kd3 {[%clk 0:02:11]}  Nxb2+ {[%clk 0:01:05]} 34. Kxd4 {[%clk 0:02:11]}  Nd1 {[%clk 0:01:01]} 35. f3 {[%clk 0:02:06]}  Kf8 {[%clk 0:01:01]} 36. Nd5 {[%clk 0:02:01]}  g6 {[%clk 0:01:00]} 37. hxg6 {[%clk 0:02:01]}  fxg6 {[%clk 0:01:01]} 38. Nc3 {[%clk 0:01:57]}  Nb2 {[%clk 0:00:55]} 39. Ne4 {[%clk 0:01:54]}  Ke7 {[%clk 0:00:52]} 40. Nf2 {[%clk 0:01:53]} 1-0


[Site "https://www.chess.com"]